bitfinex/quotes_BTCUSD_20260310
["timestamp","ask_amount","ask_price","bid_price","bid_amount"]
[1773167774230,0.03,70269.0,70239.0,0.0002]
[1773167774231,0.10116525,70259.0,70239.0,0.0002]
[1773167774402,0.10116525,70259.0,70236.0,0.00562]
[1773167774403,0.03,70251.0,70236.0,0.00562]
[1773167774631,0.03,70251.0,70225.0,0.0761194]
[1773167774632,0.03,70249.0,70225.0,0.00491977]
[1773167774889,0.03,70239.0,70216.0,0.00012]
[1773167775008,0.00152,70238.0,70220.0,0.07120413]
[1773167775207,0.00152,70238.0,70216.0,0.00012]
[1773167775626,0.00152,70238.0,70216.0,0.07132857]
[1773167775957,0.0313425,70238.0,70216.0,0.00012]
[1773167776099,0.0313425,70238.0,70216.0,0.07132814]
[1773167776307,0.03,70236.0,70216.0,0.00012]
[1773167776765,0.07117878,70246.0,70217.0,0.005]
[1773167776958,0.00023,70250.0,70218.0,0.005]
[1773167776959,0.07155073,70249.0,70218.0,0.005]
[1773167777159,0.07155073,70249.0,70220.0,0.16218695]
[1773167777160,0.00037505,70249.0,70220.0,0.16218695]
[1773167777366,0.03152,70257.0,70226.0,0.005]
[1773167777582,0.00152,70265.0,70241.0,0.005]
[1773167777815,0.00152,70270.0,70237.0,0.005]
[1773167778007,0.00152,70270.0,70236.0,0.00562]
[1773167778008,0.00152,70274.0,70243.0,0.005]
[1773167778311,0.00152,70274.0,70240.0,0.16218695]
[1773167778312,0.03,70283.0,70253.0,0.005]
[1773167778433,0.00148,70282.0,70255.0,0.005]
[1773167778647,0.00148,70282.0,70256.0,0.005]
[1773167779472,0.00159253,70282.0,70256.0,0.005]
[1773167779952,0.03011253,70282.0,70256.0,0.006]
[1773167780294,0.00148,70282.0,70258.0,0.005]
[1773167780500,0.00714,70292.0,70261.0,0.16110317]
[1773167780706,0.00023,70300.0,70271.0,0.005]
[1773167780707,4.85854933,70299.0,70271.0,0.005]
[1773167780886,4.85854933,70299.0,70264.0,0.00562]
[1773167780887,4.55157596,70299.0,70281.0,0.005]
[1773167781071,0.03,70298.0,70281.0,0.005]
[1773167781265,0.03,70298.0,70270.0,0.16218695]
[1773167781266,0.03,70298.0,70282.0,0.00152]
[1773167781460,0.03152,70298.0,70264.0,0.00562]
[1773167781804,0.03152,70298.0,70266.0,0.00491293]
[1773167782170,0.03152,70298.0,70269.0,0.07115513]
[1773167782400,4.62270102,70299.0,70280.0,0.16218695]
[1773167782401,3.79966011,70299.0,70280.0,0.16218695]
[1773167782603,1.37911167,70299.0,70289.0,0.00491293]
[1773167783089,1.37911167,70299.0,70280.0,0.16218695]
[1773167783090,1.19416915,70299.0,70291.0,0.01175436]
[1773167783291,1.19416915,70299.0,70293.0,0.01175436]
[1773167783490,0.27747824,70299.0,70295.0,0.01175436]
[1773167783727,0.27747824,70299.0,70297.0,0.01175436]
[1773167783931,0.00023,70300.0,70297.0,0.01175436]
[1773167784103,0.0006293,70315.0,70297.0,0.01175436]
[1773167784343,0.00074196,70315.0,70299.0,0.01175436]
[1773167784852,0.00022001,70324.0,70299.0,0.01175436]
[1773167785027,0.1016952,70324.0,70299.0,0.01175436]
[1773167785232,0.1016952,70324.0,70298.0,0.07112577]
[1773167785233,0.03059538,70324.0,70300.0,0.00152]
[1773167785437,0.00022001,70331.0,70301.0,0.01163718]
[1773167785756,0.16345697,70351.0,70311.0,0.01163718]
[1773167785757,0.00562,70348.0,70311.0,0.01163718]
[1773167786015,0.07108039,70343.0,70313.0,0.01163718]
[1773167786223,0.03,70337.0,70313.0,0.01163718]
[1773167786434,0.03,70337.0,70315.0,0.01163718]
[1773167787258,0.03,70336.0,70315.0,0.01163718]
[1773167787463,0.00022001,70339.0,70317.0,0.01150906]
[1773167787848,0.00562,70348.0,70317.0,0.01150906]
[1773167788267,0.07106269,70361.0,70317.0,0.01150906]
[1773167788268,0.03,70358.0,70325.0,0.00023]
[1773167788438,0.00152,70369.0,70326.0,0.01150906]
[1773167788662,0.0725745,70369.0,70326.0,0.01150906]
[1773167788997,0.0725745,70369.0,70328.0,0.01150906]
[1773167789420,0.03,70368.0,70328.0,0.01150906]
[1773167789628,0.03,70368.0,70329.0,0.00152]
[1773167789891,0.03,70368.0,70330.0,0.00491293]
[1773167790088,0.03,70368.0,70331.0,0.00152]
[1773167790089,0.00022001,70347.0,70331.0,0.00152]
[1773167790496,0.00022001,70354.0,70332.0,0.07109139]
[1773167790711,0.07127053,70373.0,70333.0,0.00491293]
[1773167790947,0.07127053,70373.0,70335.0,0.00491293]
[1773167790948,0.00022001,70373.0,70335.0,0.00491293]
[1773167791160,0.00022001,70381.0,70350.0,0.00023]
[1773167791353,0.07103259,70391.0,70352.0,0.00491293]
[1773167791510,0.03,70387.0,70352.0,0.00491293]
[1773167791936,0.03,70387.0,70353.0,0.00152]
[1773167792109,0.00148,70386.0,70352.0,0.00491293]
[1773167792308,0.00148,70386.0,70353.0,0.00152]
[1773167792537,0.03,70384.0,70354.0,0.07106916]
[1773167793353,0.03,70384.0,70356.0,0.00491293]
[1773167793665,0.03,70383.0,70356.0,0.00491293]
[1773167794152,0.07125686,70388.0,70356.0,0.00491293]
[1773167794153,1e-08,70388.0,70356.0,0.00491293]
[1773167794375,0.00023,70400.0,70356.0,0.00491293]
[1773167794504,1e-08,70400.0,70372.0,0.00491293]
[1773167794712,1e-08,70404.0,70381.0,0.00491293]
[1773167795126,0.07169291,70418.0,70381.0,0.00491293]
[1773167795365,0.0006875,70418.0,70381.0,0.00491293]
[1773167795729,0.03,70417.0,70381.0,0.00491293]
[1773167795934,0.03,70417.0,70383.0,0.00491293]
[1773167796374,0.03,70417.0,70384.0,0.00152]
[1773167796635,0.12504,70454.0,70384.0,0.00152]
[1773167796636,0.03,70424.0,70386.0,0.00491293]
[1773167796935,0.03011252,70424.0,70391.0,0.24363]
[1773167797313,0.00148,70435.0,70401.0,0.00491293]
[1773167797558,0.00023,70450.0,70412.0,0.00491293]
[1773167797694,0.00023,70450.0,70421.0,0.00491293]
[1773167797898,0.03,70449.0,70421.0,0.00491293]
[1773167798256,0.03,70449.0,70405.0,0.00491293]
[1773167798392,0.07120278,70450.0,70405.0,0.00491293]
[1773167798393,0.03,70446.0,70408.0,0.07101465]
[1773167798594,0.03,70446.0,70411.0,0.00491293]
[1773167798794,0.00489342,70445.0,70408.0,0.07101465]
[1773167798999,0.00489342,70445.0,70406.0,0.07249628]
[1773167799395,0.03,70446.0,70407.0,0.00491293]
[1773167800004,0.03,70446.0,70408.0,0.00491293]
[1773167800209,0.03,70446.0,70409.0,0.00152]
[1773167800466,0.03,70446.0,70406.0,0.07101628]
[1773167800467,0.03,70444.0,70406.0,0.07101628]
[1773167800894,0.00489342,70443.0,70406.0,0.07101628]
[1773167801099,0.00489342,70443.0,70407.0,0.00152]
[1773167801503,0.03,70439.0,70405.0,0.07101667]
[1773167801699,0.03489342,70437.0,70405.0,0.07101667]
[1773167801961,0.03,70437.0,70405.0,0.07253667]
[1773167802300,0.00148,70436.0,70406.0,0.00152]
[1773167802500,0.03,70434.0,70407.0,0.00152]
[1773167802748,0.03,70434.0,70405.0,0.07101667]
[1773167802987,0.03,70434.0,70404.0,0.07663667]
[1773167802988,0.00489342,70433.0,70404.0,0.07663667]
[1773167803321,0.00489342,70433.0,70404.0,0.07663787]
[1773167803518,0.00023,70425.0,70395.0,0.07102759]
[1773167803734,0.00152,70424.0,70396.0,0.07102676]
[1773167803934,0.00152,70424.0,70390.0,0.00152]
[1773167803936,0.00152,70424.0,70376.0,0.00562]
[1773167803937,0.03,70408.0,70376.0,0.00562]
[1773167804137,0.00023,70400.0,70362.0,0.00152]
[1773167804334,0.00023,70400.0,70358.0,0.07106439]
[1773167804335,0.00512342,70400.0,70358.0,0.07106439]
[1773167804537,0.03,70398.0,70364.0,0.07105906]
[1773167804786,0.03,70398.0,70360.0,0.07106215]
[1773167804787,0.00489342,70396.0,70360.0,0.07106215]
[1773167804994,0.00489342,70394.0,70357.0,0.07106613]
[1773167805375,0.00489342,70394.0,70357.0,0.07117865]
[1773167805586,0.00489342,70394.0,70357.0,0.00011252]
[1773167805943,0.00489342,70393.0,70357.0,0.00011252]
[1773167806336,0.03,70394.0,70357.0,0.00011252]
[1773167806575,0.07125373,70400.0,70359.0,0.07106411]
[1773167806576,0.03,70391.0,70359.0,0.07106411]
[1773167807388,0.03,70391.0,70360.0,0.00152]
[1773167807540,0.00490312,70386.0,70357.0,0.00011252]
[1773167807744,0.00152,70385.0,70357.0,0.00011252]
[1773167807963,0.00490312,70384.0,70357.0,0.00011252]
[1773167808196,0.00490312,70384.0,70356.0,0.0002]
[1773167808366,0.00490312,70381.0,70356.0,0.00011263]
[1773167808568,0.00490312,70381.0,70356.0,0.07117977]
[1773167808569,0.10104492,70378.0,70356.0,0.07117977]
[1773167808792,0.00152,70377.0,70356.0,0.07117977]
[1773167809215,0.10104492,70378.0,70356.0,0.07117977]
[1773167809416,0.00152,70376.0,70356.0,0.07117977]
[1773167809760,0.00152,70376.0,70356.0,0.07269977]
[1773167809993,0.00152,70376.0,70356.0,0.07117977]
[1773167810151,0.00152,70376.0,70356.0,0.00011263]
[1773167810352,0.00609869,70376.0,70350.0,0.00023]
[1773167810718,0.00609869,70376.0,70323.0,0.07178763]
[1773167810719,0.03,70359.0,70323.0,0.07178763]
[1773167810929,0.19394704,70360.0,70323.0,0.0006875]
[1773167810930,0.03,70354.0,70323.0,0.0006875]
[1773167811080,0.00457869,70353.0,70323.0,0.0006875]
[1773167811276,0.00457869,70349.0,70320.0,0.00562]
[1773167811516,0.00457869,70347.0,70320.0,0.00562]
[1773167811725,0.00457869,70347.0,70311.0,0.07111172]
[1773167811726,0.03152,70348.0,70304.0,0.07159926]
[1773167811727,0.03,70339.0,70304.0,0.07159926]
[1773167811901,0.03,70336.0,70304.0,0.07159926]
[1773167812105,0.00152,70335.0,70304.0,0.07197463]
[1773167812304,0.00609869,70335.0,70304.0,0.07197428]
[1773167812533,0.03457869,70333.0,70304.0,0.00085537]
[1773167812703,0.00023,70325.0,70295.0,0.06940781]
[1773167812902,0.00152,70324.0,70295.0,0.06940781]
[1773167814036,0.00152,70323.0,70295.0,0.06940781]
[1773167814332,0.00134247,70323.0,70295.0,0.06940781]
[1773167814706,0.00060445,70325.0,70292.0,0.00562]
[1773167814707,0.03,70322.0,70292.0,0.00562]
[1773167814910,0.03,70317.0,70292.0,0.00562]
[1773167815130,0.20147868,70318.0,70292.0,0.00562]
[1773167815131,0.03,70311.0,70292.0,0.00562]
[1773167815419,0.03,70309.0,70292.0,0.00562]
[1773167815609,0.03,70309.0,70289.0,0.0002]
[1773167815809,0.00152,70310.0,70285.0,0.07182587]
[1773167815810,0.03,70305.0,70285.0,0.07182587]
[1773167816049,0.05513267,70303.0,70285.0,0.0006875]
[1773167816211,0.05513267,70303.0,70285.0,0.07182584]
[1773167816426,0.05513267,70303.0,70285.0,0.0006875]
[1773167816627,0.03,70301.0,70285.0,0.07182608]
[1773167816887,0.00152,70300.0,70275.0,0.00023]
[1773167817087,0.00152,70300.0,70264.0,0.07678006]
[1773167817088,0.03,70296.0,70264.0,0.07678006]
[1773167817229,0.02468364,70291.0,70264.0,0.07678006]
[1773167817436,0.03,70286.0,70264.0,0.07689259]
[1773167817636,0.00152,70285.0,70264.0,0.07689259]
[1773167818393,0.03,70286.0,70264.0,0.07689259]
[1773167818582,0.00116489,70284.0,70264.0,0.07689259]
[1773167818949,0.00152,70284.0,70265.0,0.00152]
[1773167819276,0.02417031,70279.0,70248.0,0.07117621]
[1773167819445,0.03,70276.0,70257.0,0.07152632]
[1773167819644,0.03,70274.0,70257.0,0.0003595]
[1773167820554,0.03,70274.0,70257.0,0.07152624]
[1773167820683,0.03,70274.0,70254.0,0.07136728]
[1773167820684,0.03,70271.0,70254.0,0.0002]
[1773167820888,0.03,70271.0,70240.0,0.0002]
[1773167820889,0.05417031,70265.0,70243.0,0.07118106]
[1773167821084,0.05417031,70265.0,70241.0,0.00152]
[1773167821085,0.00152,70264.0,70241.0,0.07118257]
[1773167821309,0.05426979,70263.0,70240.0,0.07138408]
[1773167821589,0.05426979,70263.0,70247.0,0.07137707]
[1773167821590,0.03,70263.0,70247.0,0.07137707]
[1773167821834,0.07115073,70274.0,70248.0,0.00152]
[1773167822035,0.02578979,70286.0,70248.0,0.00152]
[1773167822239,0.03,70280.0,70250.0,0.00023]
[1773167822660,0.09692849,70286.0,70250.0,0.00023]
[1773167822661,0.03,70278.0,70250.0,0.00023]
[1773167823048,0.03,70276.0,70251.0,0.07117336]
[1773167823817,0.00011222,70279.0,70251.0,0.07117336]
[1773167824032,0.03,70278.0,70251.0,0.07117336]
[1773167824364,0.03,70278.0,70252.0,0.00152]
[1773167824536,0.03,70278.0,70257.0,0.0002]
[1773167824738,0.03,70275.0,70251.0,0.07117336]
[1773167824917,0.03,70271.0,70251.0,0.07117336]
[1773167825115,0.03,70271.0,70250.0,0.07140336]
[1773167825116,0.03,70269.0,70253.0,0.00048]
[1773167825312,0.00152,70270.0,70240.0,0.0002]
[1773167825313,0.03,70265.0,70240.0,0.0002]
[1773167825513,0.05470141,70265.0,70240.0,0.07138395]
[1773167825960,0.00152,70264.0,70240.0,0.07138395]
[1773167826153,0.00152,70264.0,70240.0,0.071384]
[1773167826154,0.02470141,70261.0,70240.0,0.071384]
[1773167826355,0.03,70260.0,70240.0,0.071384]
[1773167827168,0.03,70258.0,70240.0,0.071384]
[1773167828142,0.03,70258.0,70240.0,0.0002]
[1773167828486,0.07268525,70259.0,70240.0,0.0002]
[1773167828487,0.05481613,70256.0,70242.0,0.0002]
[1773167828676,0.02481613,70253.0,70225.0,0.00023]
[1773167828875,0.19976801,70257.0,70217.0,0.07120757]
[1773167828876,0.03,70238.0,70217.0,0.07120757]
[1773167829079,0.03,70234.0,70210.0,0.07121492]
[1773167829260,0.00152,70238.0,70213.0,0.00152]
[1773167829462,0.00152,70238.0,70210.0,0.07121492]
[1773167829805,0.02634424,70238.0,70216.0,0.00201505]
[1773167830153,0.03,70237.0,70216.0,0.00049505]
[1773167830348,0.05482424,70235.0,70216.0,0.00049505]
[1773167830743,0.03152,70235.0,70216.0,0.00049505]
[1773167830946,0.03,70233.0,70217.0,0.07120782]
[1773167831190,0.03,70233.0,70216.0,0.07170356]
[1773167831597,0.07119059,70234.0,70209.0,0.07209403]
[1773167831598,0.02489517,70230.0,70209.0,0.07209403]
[1773167831898,0.03,70229.0,70209.0,0.07220673]
[1773167832058,0.00152,70228.0,70209.0,0.07220673]
[1773167832463,0.00152,70228.0,70209.0,0.07220648]
[1773167832743,0.00152,70228.0,70209.0,0.0009913]
[1773167832744,0.02489517,70225.0,70209.0,0.0009913]
[1773167832890,0.03,70220.0,70202.0,0.07170285]
[1773167833218,0.03,70220.0,70202.0,0.00059279]
[1773167833219,0.03,70218.0,70202.0,0.00059279]
[1773167833392,0.00152,70217.0,70200.0,0.00023]
[1773167833598,0.00163216,70217.0,70186.0,0.07123927]
[1773167833915,0.00011216,70217.0,70186.0,0.07123927]
[1773167834072,0.00011216,70217.0,70187.0,0.00152]
[1773167835082,0.03,70216.0,70188.0,0.07275724]
[1773167835520,0.03,70216.0,70177.0,0.07124764]
[1773167835521,0.00457869,70215.0,70177.0,0.07124764]
[1773167835727,0.03,70209.0,70180.0,0.10836122]
[1773167835933,0.00457869,70207.0,70180.0,0.10836056]
[1773167836319,0.00457869,70207.0,70180.0,0.03711613]
[1773167836540,0.00457869,70207.0,70180.0,0.10836114]
[1773167837160,0.00152,70206.0,70188.0,0.0002]
[1773167837363,0.0013424,70205.0,70188.0,0.0002]
[1773167837564,0.00152,70204.0,70188.0,0.0002]
[1773167837972,0.00152,70204.0,70180.0,0.03731613]
[1773167838343,0.00457869,70203.0,70175.0,0.00023]
[1773167838550,0.00152,70204.0,70175.0,0.07148027]
[1773167839150,0.00562,70208.0,70175.0,0.07623279]
[1773167839151,0.03,70206.0,70175.0,0.07623279]
[1773167839755,0.03,70206.0,70175.0,0.07148027]
[1773167839949,0.0048088,70205.0,70175.0,0.07299991]
[1773167840181,0.0048088,70205.0,70175.0,0.07148026]
[1773167840403,0.0048088,70205.0,70175.0,0.07248018]
[1773167840557,0.0048088,70205.0,70175.0,0.07148018]
[1773167841102,0.07122101,70204.0,70175.0,0.07148018]
[1773167841300,0.03,70203.0,70175.0,0.07148018]
[1773167841517,0.00152,70202.0,70175.0,0.07148018]
[1773167842073,0.0048088,70201.0,70175.0,0.07148018]
[1773167842893,0.00152,70202.0,70175.0,0.00023]
[1773167843148,0.00152,70202.0,70134.0,0.34219814]
[1773167843149,0.00152,70202.0,70160.0,0.01602222]
[1773167843150,0.27854887,70198.0,70160.0,0.01602222]
[1773167843349,0.03,70189.0,70160.0,0.0008786]
[1773167843673,0.00152,70188.0,70151.0,0.07175449]
[1773167843856,0.00134236,70188.0,70152.0,0.07689369]
[1773167844413,0.03134236,70188.0,70152.0,0.07689369]
[1773167844610,0.03134236,70188.0,70152.0,0.07726911]
[1773167844825,0.03,70186.0,70124.0,0.07692171]
[1773167845030,0.00023,70175.0,70127.0,0.01504605]
[1773167845262,0.03,70173.0,70129.0,0.01504605]
[1773167845509,0.03152,70173.0,70130.0,0.89789004]
[1773167845662,0.03,70173.0,70167.0,0.0002]
[1773167846284,0.00023,70175.0,70167.0,0.0002]
[1773167846846,0.00562,70180.0,70168.0,0.01504605]
[1773167847045,0.07122693,70199.0,70168.0,0.01504605]
[1773167847046,0.07122287,70203.0,70168.0,0.01504605]
[1773167847248,0.03,70193.0,70170.0,0.01496144]
[1773167847455,0.03,70193.0,70172.0,0.01496144]
[1773167847655,0.07122397,70202.0,70172.0,0.01496144]
[1773167847877,0.00584001,70208.0,70176.0,0.01496144]
[1773167848231,0.03,70215.0,70181.0,0.01496144]
[1773167848563,0.03,70215.0,70182.0,0.00152]
[1773167849184,0.03,70213.0,70182.0,0.00152]
[1773167849607,0.07121086,70214.0,70180.0,0.0768648]
[1773167849608,0.07121086,70214.0,70180.0,0.00562]
[1773167849609,0.03,70205.0,70180.0,0.00562]
[1773167849925,0.00152,70204.0,70180.0,0.00562]
[1773167850244,0.03,70205.0,70180.0,0.00562]
[1773167850477,0.00152,70203.0,70180.0,0.00562]
[1773167850966,0.00152,70203.0,70180.0,0.0768647]
[1773167851127,0.00152,70203.0,70180.0,0.00562]
[1773167851330,0.03,70201.0,70180.0,0.07686496]
[1773167851731,0.07294986,70216.0,70181.0,0.01486977]
[1773167851913,0.0712112,70214.0,70181.0,0.01486977]
[1773167852329,0.03,70213.0,70181.0,0.01486977]
[1773167853200,0.03,70211.0,70182.0,0.07124333]
[1773167853404,0.03,70211.0,70183.0,0.01477787]
[1773167853647,0.00022001,70208.0,70183.0,0.01477787]
[1773167854750,0.00022001,70208.0,70185.0,0.01477787]
[1773167855152,0.00022001,70208.0,70202.0,0.00048]
[1773167855716,0.03,70211.0,70202.0,0.00048]
[1773167856836,0.03,70215.0,70202.0,0.002]
[1773167857037,0.00022001,70223.0,70203.0,0.01982716]
[1773167857206,0.1627095,70250.0,70202.0,0.07322226]
[1773167857207,0.07118101,70244.0,70210.0,0.1624795]
[1773167857406,0.00023,70250.0,70210.0,0.1624795]
[1773167857407,0.07118764,70237.0,70212.0,0.01982716]
[1773167857654,0.07680927,70236.0,70213.0,0.00152]
[1773167857803,0.03,70235.0,70214.0,0.01982716]
[1773167858282,0.03,70235.0,70215.0,0.00152]
[1773167858936,0.03,70235.0,70214.0,0.01982716]
[1773167859294,0.03,70233.0,70210.0,0.00011219]
[1773167859497,0.03,70233.0,70211.0,0.00152]
[1773167859720,0.03,70227.0,70210.0,0.00011219]
[1773167860088,0.00152,70226.0,70196.0,0.01971998]
[1773167860335,0.00163271,70226.0,70195.0,0.07123008]
[1773167860639,0.00163271,70226.0,70199.0,0.01971998]
[1773167860796,0.00163271,70226.0,70199.0,0.09094604]
[1773167861002,0.00163271,70226.0,70201.0,0.07122378]
[1773167861315,0.00163271,70226.0,70199.0,0.09094583]
[1773167861490,0.03,70224.0,70199.0,0.01971998]
[1773167861690,0.03,70224.0,70199.0,0.09094581]
[1773167861889,0.03,70224.0,70203.0,0.01967942]
[1773167862494,0.00011271,70226.0,70203.0,0.01967942]
[1773167863121,0.00111271,70226.0,70203.0,0.01967942]
[1773167863703,0.03,70234.0,70204.0,0.07122101]
[1773167863912,0.03,70234.0,70204.0,0.07133372]
[1773167864159,0.07140157,70243.0,70204.0,0.07133372]
[1773167864160,0.00022001,70243.0,70210.0,0.1624795]
[1773167864382,0.005,70256.0,70204.0,0.07133372]
[1773167864383,0.005,70256.0,70220.0,0.1624795]
[1773167864592,0.03,70262.0,70231.0,0.11933506]
[1773167864806,0.03,70262.0,70232.0,0.00152]
[1773167865614,0.00562,70264.0,70233.0,0.0711916]
[1773167865822,0.03,70263.0,70233.0,0.0711916]
[1773167866571,0.03,70262.0,70233.0,0.0711916]
[1773167866775,0.03,70262.0,70234.0,0.00152]
[1773167866776,0.005,70261.0,70234.0,0.00152]
[1773167866986,0.005,70261.0,70235.0,0.00152]
[1773167867202,0.005,70261.0,70236.0,0.00152]
[1773167867638,0.03,70259.0,70237.0,0.07118755]
[1773167867951,0.00621606,70264.0,70240.0,0.16211699]
[1773167868251,0.00621606,70264.0,70237.0,0.07118755]
[1773167868612,0.01075792,70290.0,70250.0,0.16211699]
[1773167868814,1e-08,70282.0,70261.0,0.05363949]
[1773167869039,0.00562,70292.0,70261.0,0.05363949]
[1773167869040,0.00562,70292.0,70269.0,0.16211699]
[1773167869204,0.00562,70292.0,70262.0,0.00152]
[1773167869422,0.00023,70300.0,70262.0,0.00152]
[1773167869423,0.00023,70300.0,70270.0,0.16211699]
[1773167869742,0.00023,70300.0,70271.0,0.0711531]
[1773167869941,0.00023,70300.0,70272.0,0.00152]
[1773167870924,0.00023,70300.0,70280.0,0.16211699]
[1773167871141,0.00023,70300.0,70272.0,0.00152]
[1773167871589,0.00023,70300.0,70273.0,0.07115108]
[1773167871794,0.03,70299.0,70274.0,0.00152]
[1773167872672,0.03,70310.0,70280.0,0.16211699]
[1773167873287,0.03,70310.0,70275.0,0.00023]
[1773167873637,0.0711088,70315.0,70275.0,0.00023]
[1773167873638,0.03,70316.0,70290.0,0.16211699]
[1773167873837,0.10110794,70316.0,70291.0,0.00152]
[1773167874239,0.03,70314.0,70276.0,0.07114804]
[1773167874463,0.00148,70313.0,70276.0,0.07114804]
[1773167874792,0.005,70308.0,70277.0,0.00152]
[1773167874993,0.005,70308.0,70278.0,0.00152]
[1773167875419,0.03,70309.0,70280.0,0.16211699]
[1773167875637,0.03,70307.0,70281.0,0.07114298]
[1773167875786,0.005,70306.0,70282.0,0.00152]
[1773167876974,0.03,70304.0,70279.0,0.07114298]
[1773167877166,0.04789457,70304.0,70283.0,0.00152]
[1773167877789,0.03,70298.0,70282.0,0.00152]
[1773167878076,0.07112072,70303.0,70280.0,0.00152]
[1773167878077,0.03,70294.0,70280.0,0.00152]
[1773167878805,0.03,70294.0,70276.0,0.07114787]
[1773167879008,0.03,70293.0,70276.0,0.07114787]
[1773167879209,0.09755061,70309.0,70280.0,0.16211699]
[1773167879419,0.07111566,70308.0,70277.0,0.00152]
[1773167879598,0.09755061,70309.0,70277.0,0.00152]
[1773167879795,0.09755061,70309.0,70278.0,0.07114602]
[1773167880341,0.03,70308.0,70280.0,0.16211699]
[1773167880594,0.03,70308.0,70290.0,0.16211699]
[1773167880759,0.05491545,70308.0,70278.0,0.07114602]
[1773167880916,0.03,70306.0,70279.0,0.00152]
[1773167881115,0.03,70306.0,70280.0,0.16211699]
[1773167881317,0.03,70306.0,70278.0,0.07114602]
[1773167881519,0.0711149,70309.0,70278.0,0.07114602]
[1773167881520,0.03,70302.0,70278.0,0.07114602]
[1773167881724,0.03,70302.0,70279.0,0.00152]
[1773167881929,0.03,70302.0,70280.0,0.23326098]
[1773167882146,0.03,70302.0,70280.0,0.07214399]
[1773167882313,0.10112174,70302.0,70280.0,0.07214399]
[1773167882519,0.03,70301.0,70280.0,0.07114399]
[1773167883367,0.03,70301.0,70280.0,0.23326098]
[1773167883584,0.00022001,70308.0,70280.0,0.23326098]
[1773167883947,0.00022001,70308.0,70291.0,0.07113286]
[1773167884119,0.00022001,70308.0,70292.0,0.00152]
[1773167884934,0.10133667,70308.0,70291.0,0.07113286]
[1773167885137,0.10133667,70308.0,70292.0,0.00152]
[1773167885138,0.03022001,70308.0,70292.0,0.00152]
[1773167885545,0.03,70304.0,70284.0,0.00152]
[1773167885762,0.03,70304.0,70276.0,0.07114804]
[1773167885763,0.03,70300.0,70285.0,0.00152]
[1773167885963,0.10112408,70300.0,70287.0,0.07113691]
[1773167886173,0.10112408,70300.0,70275.0,0.00023]
[1773167886174,0.03,70298.0,70278.0,0.07114399]
[1773167886371,0.03,70298.0,70276.0,0.07114753]
[1773167886372,0.03,70292.0,70279.0,0.00152]
[1773167886574,0.03,70290.0,70280.0,0.00152]
[1773167886786,0.07112408,70300.0,70273.0,0.00152]
[1773167886787,0.03,70286.0,70273.0,0.00152]
[1773167887752,0.02490072,70298.0,70273.0,0.00152]
[1773167887753,0.03152,70297.0,70273.0,0.00152]
[1773167887962,0.03,70297.0,70273.0,0.00152]
[1773167888183,0.07135408,70300.0,70274.0,0.07115006]
[1773167888184,0.03,70295.0,70274.0,0.07115006]
[1773167888937,0.03,70295.0,70275.0,0.00152]
[1773167889142,0.03,70294.0,70275.0,0.00152]
[1773167889292,0.03,70294.0,70276.0,0.00152]
[1773167889487,0.03,70294.0,70274.0,0.07115006]
[1773167889715,0.03,70294.0,70277.0,0.00152]
[1773167890084,0.00022001,70295.0,70277.0,0.00152]
[1773167890085,0.03,70293.0,70278.0,0.07114602]
[1773167891134,0.00022001,70295.0,70278.0,0.07114602]
[1773167891281,0.00022001,70295.0,70279.0,0.00152]
[1773167892121,0.03,70296.0,70280.0,0.07114399]
[1773167892333,0.07135393,70300.0,70280.0,0.07114399]
[1773167892544,0.02468211,70299.0,70281.0,0.00152]
[1773167892750,0.02468211,70299.0,70282.0,0.00152]
[1773167892960,0.07134376,70303.0,70279.0,0.07114399]
[1773167892961,8.48e-06,70308.0,70289.0,0.16211699]
[1773167893191,0.00012114,70308.0,70283.0,0.00152]
[1773167893392,0.03012114,70308.0,70283.0,0.00152]
[1773167893612,0.03012114,70308.0,70284.0,0.00152]
[1773167893816,0.10123705,70308.0,70279.0,0.07114399]
[1773167894045,0.12564105,70308.0,70279.0,0.07114399]
[1773167894275,0.05452514,70308.0,70280.0,0.16363699]
[1773167894684,0.03,70307.0,70280.0,0.16363699]
[1773167895595,0.03,70306.0,70280.0,0.16363699]
[1773167895931,0.03,70306.0,70280.0,0.00152]
[1773167896359,0.03,70306.0,70281.0,0.07114298]
[1773167896538,0.03,70305.0,70290.0,0.16211699]
[1773167896757,0.00012114,70308.0,70291.0,0.00152]
[1773167897332,0.00012114,70308.0,70292.0,0.12002596]
[1773167898066,0.00012114,70308.0,70291.0,0.00152]
[1773167898256,0.00012114,70308.0,70292.0,0.07113184]
[1773167898452,0.00012114,70308.0,70293.0,0.00152]
[1773167899063,0.03,70304.0,70294.0,0.00152]
[1773167899261,0.03,70302.0,70285.0,0.07113893]
[1773167899467,0.03,70298.0,70285.0,0.07113893]
[1773167899682,0.00012114,70308.0,70286.0,0.00152]
[1773167899683,0.03,70296.0,70286.0,0.00152]
[1773167900203,0.03,70296.0,70285.0,0.07113893]
[1773167900702,0.03,70296.0,70282.0,0.07113893]
[1773167900862,0.03,70296.0,70278.0,0.00152]
[1773167900863,0.03,70294.0,70280.0,0.07134358]
[1773167901152,0.03,70294.0,70283.0,0.00152]
[1773167901354,0.03,70294.0,70280.0,0.07134358]
[1773167901534,0.03,70294.0,70284.0,0.00152]
[1773167901940,0.03,70293.0,70284.0,0.00152]
[1773167902906,0.03,70292.0,70284.0,0.00152]
[1773167903085,0.03,70292.0,70284.0,0.07265973]
[1773167903896,0.03,70291.0,70284.0,0.07265973]
[1773167904292,0.03,70291.0,70284.0,0.00152]
[1773167904504,0.03,70291.0,70284.0,0.07265953]
[1773167905063,0.03,70290.0,70284.0,0.07265953]
[1773167905668,0.03,70290.0,70284.0,0.00152]
[1773167905806,0.03,70290.0,70276.0,0.07114804]
[1773167906016,0.03,70289.0,70276.0,0.07114804]
[1773167906232,0.07112788,70296.0,70265.0,0.0002]
[1773167906233,0.03,70285.0,70265.0,0.0002]